bitfinex-derivatives/quotes_ETHF0:USTF0_20250503
["timestamp","ask_amount","ask_price","bid_price","bid_amount"]
[1746259142062,3.09630371,1827.4,1827.3,3.2905]
[1746259142357,2.80757,1827.4,1827.3,3.2905]
[1746259142556,3.09629458,1827.4,1827.3,3.2905]
[1746259142757,1.38289514,1827.4,1827.3,3.2905]
[1746259142958,1.38290231,1827.4,1827.3,3.2905]
[1746259143157,1.38289954,1827.4,1827.3,3.2905]
[1746259143456,1.09417,1827.4,1827.3,3.2905]
[1746259143657,1.3828934,1827.4,1827.3,3.2905]
[1746259143853,1.3828932,1827.4,1827.3,3.2905]
[1746259144049,1.38289345,1827.4,1827.3,3.2905]
[1746259144255,1.38289552,1827.4,1827.3,3.2905]
[1746259144558,1.38287455,1827.4,1827.3,3.2905]
[1746259145152,1.38288613,1827.4,1827.3,3.2905]
[1746259145358,6.63398145,1827.4,1827.3,3.2905]
[1746259145852,6.34526577,1827.4,1827.3,3.2905]
[1746259146252,6.63396995,1827.4,1827.3,3.2905]
[1746259146554,6.63402904,1827.4,1827.3,3.2905]
[1746259146857,6.6340444,1827.4,1827.3,3.2905]
[1746259147058,6.63406205,1827.4,1827.3,3.2905]
[1746259147257,6.6340581,1827.4,1827.3,3.2905]
[1746259147458,6.63406334,1827.4,1827.3,3.2905]
[1746259147660,6.6340704,1827.4,1827.3,3.2905]
[1746259147861,6.34526577,1827.4,1827.3,3.2905]
[1746259148061,6.63406816,1827.4,1827.3,3.2905]
[1746259148358,6.63406835,1827.4,1827.3,3.2905]
[1746259148560,6.63407047,1827.4,1827.3,3.2905]
[1746259148757,6.63407024,1827.4,1827.3,3.2905]
[1746259148960,6.63407044,1827.4,1827.3,3.2905]
[1746259149158,6.63407049,1827.4,1827.3,3.2905]
[1746259149357,6.63407033,1827.4,1827.3,3.2905]
[1746259149558,6.63404409,1827.4,1827.3,3.2905]
[1746259149758,7.33180641,1827.4,1827.3,3.2905]
[1746259150461,7.33182747,1827.4,1827.3,3.2905]
[1746259150663,7.3318275,1827.4,1827.3,3.2905]
[1746259150865,7.33183035,1827.4,1827.3,3.2905]
[1746259151163,7.04302809,1827.4,1827.3,2.4771]
[1746259151556,7.33182456,1827.4,1827.3,2.4771]
[1746259151757,7.33182154,1827.4,1827.3,2.4771]
[1746259151962,7.33182151,1827.4,1827.3,2.4771]
[1746259152164,7.33182018,1827.4,1827.3,2.4771]
[1746259152363,7.33181947,1827.4,1827.3,2.4771]
[1746259152563,7.33181933,1827.4,1827.3,2.4771]
[1746259152860,7.33182107,1827.4,1827.3,2.4771]
[1746259153166,7.33182337,1827.4,1827.3,2.4771]
[1746259153362,7.04302809,1827.4,1827.3,2.4771]
[1746259153662,7.33181416,1827.4,1827.3,2.4771]
[1746259154165,7.33181042,1827.4,1827.3,2.4771]
[1746259154358,7.33181075,1827.4,1827.3,2.4771]
[1746259154558,7.33181451,1827.4,1827.3,2.4771]
[1746259154753,7.04302809,1827.4,1827.3,2.4771]
[1746259155360,7.33180786,1827.4,1827.3,2.4771]
[1746259155563,7.33180801,1827.4,1827.3,2.4771]
[1746259155865,7.33180628,1827.4,1827.3,2.4771]
[1746259156062,7.33180637,1827.4,1827.3,2.4771]
[1746259156769,7.33179373,1827.4,1827.3,2.4771]
[1746259156959,7.33179362,1827.4,1827.3,2.4771]
[1746259157162,1.09423,1827.3,1827.2,4.2382]
[1746259157455,3.56103,1827.3,1827.2,4.2382]
[1746259157660,3.84979632,1827.3,1827.2,5.9643]
[1746259157861,3.56103,1827.3,1827.2,5.9643]
[1746259159071,3.56103,1827.3,1827.2,2.5263]
[1746259159367,1.09429,1827.2,1827.1,4.2531]
[1746259159674,2.71169,1827.2,1827.1,5.938]
[1746259163285,2.71169,1827.2,1827.1,7.03235]
[1746259163486,2.71169,1827.2,1827.1,5.938]
[1746259164081,2.71169,1827.2,1827.1,7.03235]
[1746259164281,1.09429,1827.2,1827.1,7.03235]
[1746259164482,1.09429,1827.2,1827.1,5.938]
[1746259166485,1.09429,1827.2,1827.1,2.501]
[1746259166986,1.09429,1827.2,1827.1,3.59535]
[1746259171086,1.09429,1827.2,1827.1,7.03235]
[1746259176891,1.09429,1827.2,1827.1,5.938]
[1746259177595,2.84149,1827.2,1827.1,5.938]
[1746259178091,3.71809,1827.2,1827.1,2.501]
[1746259178296,3.71809,1827.2,1826.9,7.30870578]
[1746259178297,1.09441,1827.0,1826.9,7.30870578]
[1746259178492,1.38295722,1827.0,1826.9,7.30870578]
[1746259178995,11.23414454,1827.0,1826.9,7.30870578]
[1746259179292,20.77166954,1827.0,1826.9,7.30870578]
[1746259179493,20.77166439,1827.0,1826.9,7.30870578]
[1746259179795,20.77166306,1827.0,1826.9,7.30870578]
[1746259180095,21.05971571,1827.0,1826.9,7.30870578]
[1746259180294,21.05970078,1827.0,1826.9,7.30870578]
[1746259181095,21.05970553,1827.0,1826.9,7.30870578]
[1746259181284,15.7716629,1827.0,1826.9,7.30870578]
[1746259181696,16.05952428,1827.0,1826.9,7.30870578]
[1746259181897,15.7716629,1827.0,1826.9,7.30870578]
[1746259182199,16.05952492,1827.0,1826.9,7.30870578]
[1746259182399,16.05952562,1827.0,1826.9,7.30870578]
[1746259182591,16.05952979,1827.0,1826.9,7.30870578]
[1746259182799,16.05951845,1827.0,1826.9,7.30870578]
[1746259182995,15.7716629,1827.0,1826.9,7.30870578]
[1746259183298,12.0536629,1827.0,1826.9,7.30870578]
[1746259183495,12.34151432,1827.0,1826.9,7.30870578]
[1746259184400,12.0536629,1827.0,1826.9,7.30870578]
[1746259184600,12.34140729,1827.0,1826.9,7.30870578]
[1746259184798,12.34140838,1827.0,1826.9,7.30870578]
[1746259185003,12.0536629,1827.0,1826.9,7.30870578]
[1746259185302,1.09453,1826.8,1826.7,1.7295]
[1746259189107,12.97044867,1827.0,1826.8,1.09452]
[1746259189301,1.09447,1826.9,1826.8,1.09452]
[1746259192108,1.09447,1826.9,1826.8,4.81252]
[1746259193104,1.09447,1826.9,1826.8,1.09452]
[1746259194311,1.09447,1826.9,1826.8,41.89452]
[1746259195607,8.8375229,1827.0,1826.8,40.8]
[1746259196209,8.8375229,1827.0,1826.8,44.518]
[1746259196418,8.8375229,1827.0,1826.9,1.09447]
[1746259197710,8.8375229,1827.0,1826.9,4.53247]
[1746259199510,8.8375229,1827.0,1826.9,5.38037]
[1746259199911,3.0175229,1827.0,1826.9,5.38037]
[1746259200313,0.2880529,1827.0,1826.9,5.38037]
[1746259203809,1.3824629,1827.0,1826.9,5.38037]
[1746259204214,1.3824629,1827.0,1826.9,9.09837]
[1746259205011,1.3824629,1827.0,1826.9,11.63637]
[1746259205814,3.0153629,1827.0,1826.9,10.5419]
[1746259206013,3.0153629,1827.0,1826.9,11.63637]
[1746259206215,3.0153629,1827.0,1826.9,7.156]
[1746259208113,3.0153629,1827.0,1826.9,3.438]
[1746259209118,1.09453,1826.8,1826.7,6.0426]
[1746259209511,1.09453,1826.8,1826.7,3.438]
[1746259209713,2.71113,1826.8,1826.7,3.438]
[1746259211522,1.09459,1826.7,1826.6,3.438]
[1746259211724,9.39859,1826.7,1826.6,3.438]
[1746259213520,9.39859,1826.7,1826.6,10.74670578]
[1746259217826,9.39859,1826.7,1826.6,7.30870578]
[1746259218020,9.6861236,1826.7,1826.6,7.30870578]
[1746259218218,13.11659,1826.7,1826.6,7.30870578]
[1746259218418,13.40411391,1826.7,1826.6,7.30870578]
[1746259218727,13.40411419,1826.7,1826.6,7.30870578]
[1746259219124,13.11659,1826.7,1826.6,7.30870578]
[1746259219326,13.40411341,1826.7,1826.6,7.30870578]
[1746259219627,13.40411341,1826.7,1826.4,5.1067]
[1746259219628,1.09471,1826.5,1826.4,3.439]
[1746259220220,3.60061,1826.5,1826.4,3.439]
[1746259224330,3.60061,1826.5,1826.4,5.0274]
[1746259226739,5.7137,1826.5,1826.1,46.529]
[1746259226929,4.30269,1826.2,1826.1,3.447]
[1746259227233,1.09489,1826.2,1826.1,3.447]
[1746259227833,7.57424,1826.4,1826.0,1.6233]
[1746259227834,1.09495,1826.1,1826.0,1.6233]
[1746259228028,4.36644,1826.4,1826.0,1.6233]
[1746259228029,1.09495,1826.2,1826.0,6.16529]
[1746259228229,1.09495,1826.2,1826.0,9.88329]
[1746259229338,1.09495,1826.1,1826.0,9.88329]
[1746259235748,1.09495,1826.1,1826.0,13.09109]
[1746259238349,1.09494,1826.2,1826.1,1.09492]
[1746259245349,1.09494,1826.2,1826.1,2.76882]
[1746259249459,1.09016319,1826.2,1826.1,2.76882]
[1746259249663,2.81266319,1826.2,1826.1,2.76882]
[1746259250355,1.09016319,1826.2,1826.1,2.76882]
[1746259252857,0.8411,1826.5,1826.4,1.09477]
[1746259253159,3.2078,1826.7,1826.5,1.09471]
[1746259253361,4.30239,1826.7,1826.6,2.5131]
[1746259253559,6.01609,1826.7,1826.6,2.5131]
[1746259254564,9.67068577,1826.7,1826.6,2.5131]
[1746259256564,6.46288577,1826.7,1826.6,1.7018]
[1746259256766,1.09465,1826.6,1826.5,1.96191]
[1746259256967,3.54635,1826.6,1826.5,1.96191]
[1746259258353,3.54635,1826.6,1826.5,3.54611]
[1746259263966,3.54635,1826.6,1826.5,2.67891]
[1746259265468,1.09471,1826.5,1826.4,6.6558]
[1746259265670,1.09483,1826.3,1826.2,10.51650578]
[1746259265870,1.09483,1826.3,1826.2,13.95850578]
[1746259266367,1.09483,1826.3,1826.2,15.05339578]
[1746259266569,1.94433,1826.3,1826.2,15.05339578]
[1746259267169,1.94433,1826.3,1826.2,13.95850578]
[1746259268171,1.94433,1826.3,1826.2,15.05339578]
[1746259269074,1.94433,1826.3,1826.2,13.95850578]
[1746259269277,1.94433,1826.3,1826.2,10.75070578]
[1746259269573,1.94433,1826.3,1826.2,4.53689]
[1746259270773,1.94433,1826.3,1826.2,1.09489]
[1746259270975,1.94433,1826.3,1826.2,4.53689]
[1746259274375,1.94433,1826.3,1826.2,6.23309]
[1746259275475,1.94433,1826.3,1826.2,5.1382]
[1746259275872,1.94433,1826.3,1826.2,6.23309]
[1746259276571,1.94433,1826.3,1826.2,2.79109]
[1746259276779,1.94433,1826.3,1826.2,6.23309]
[1746259278878,1.94433,1826.3,1826.2,5.1382]
[1746259281783,1.09495,1826.1,1826.0,0.8681]
[1746259282081,1.09495,1826.1,1826.0,4.3101]
[1746259282379,1.09495,1826.1,1826.0,6.0338]
[1746259282685,1.09493,1826.2,1826.1,1.09495]
[1746259282882,1.09493,1826.2,1826.1,6.88735]
[1746259284582,1.94438,1826.3,1826.2,1.09489]
[1746259284783,1.09488,1826.3,1826.2,2.73239]
[1746259285783,1.6825,1826.4,1826.2,2.73234]
[1746259286076,1.6825,1826.4,1826.1,4.0687]
[1746259286278,1.6825,1826.4,1826.1,4.4035]
[1746259286478,0.8761,1826.3,1826.1,4.4035]
[1746259286685,0.8761,1826.3,1826.2,1.09489]
[1746259286980,6.86239577,1826.6,1826.2,4.37474]
[1746259287176,6.86239577,1826.6,1826.4,1.09473]
[1746259287382,8.48829577,1826.6,1826.5,2.471]
[1746259287577,6.86239577,1826.6,1826.5,2.471]
[1746259287778,6.86239577,1826.6,1826.5,0.8335]
[1746259287979,6.86239577,1826.6,1826.5,1.92821]
[1746259288185,3.2078,1826.6,1826.5,1.92821]
[1746259288785,3.2078,1826.6,1826.5,2.78181]
[1746259291484,4.53069577,1826.7,1826.6,1.09465]
[1746259291683,0.8761,1826.7,1826.6,4.54565]
[1746259292189,0.8,1826.8,1826.7,1.09459]
[1746259292484,0.8,1826.8,1826.7,43.64449]
[1746259293588,0.8,1826.8,1826.7,41.89459]
[1746259294888,1.89453,1826.8,1826.7,41.89459]
[1746259295090,1.89453,1826.8,1826.7,1.09459]
[1746259296787,0.8,1826.8,1826.6,3.451]
[1746259296990,1.93769,1826.7,1826.5,47.4588]
[1746259297391,1.93769,1826.7,1826.5,7.75346]
[1746259297584,1.93769,1826.7,1826.6,1.09465]
[1746259299193,5.65569,1826.7,1826.6,1.09465]
[1746259302996,4.5611,1826.7,1826.6,1.09465]
[1746259303193,0.8,1826.8,1826.7,1.09459]
[1746259303585,0.8,1826.8,1826.7,2.74799]
[1746259303791,1.89453,1826.8,1826.7,2.74799]
[1746259304298,0.8,1826.8,1826.7,2.74799]
[1746259304698,1.89453,1826.8,1826.7,2.74799]
[1746259304900,3.52273,1826.8,1826.7,2.74799]
[1746259314703,3.52273,1826.8,1826.7,1.09459]
[1746259314905,1.09459,1826.7,1826.6,42.70351]
[1746259315099,3.56239,1826.7,1826.6,42.70351]
[1746259315499,3.56239,1826.7,1826.6,44.41411]
[1746259317306,3.56239,1826.7,1826.6,3.61411]
[1746259317607,1.09465,1826.6,1826.5,7.75348]
[1746259317804,2.75385,1826.6,1826.5,7.75348]
[1746259323315,2.75385,1826.6,1826.5,9.33788]
[1746259324414,2.75385,1826.6,1826.5,6.13008]
[1746259324712,2.75385,1826.6,1826.5,9.33788]
[1746259328920,2.75385,1826.6,1826.5,7.75348]
[1746259330917,2.75385,1826.6,1826.5,3.2078]
[1746259331123,1.09477,1826.5,1826.4,4.53872]
[1746259331323,3.4532,1826.5,1826.4,4.53872]
[1746259332126,7.1712,1826.5,1826.4,4.53872]
[1746259333320,3.4532,1826.5,1826.4,4.53872]
[1746259335118,7.1712,1826.5,1826.4,4.53872]
[1746259337128,3.4532,1826.5,1826.4,4.53872]
[1746259337332,3.4532,1826.5,1826.4,6.23842]
[1746259338231,4.74920577,1826.7,1826.6,1.09465]
[1746259338527,7.20670577,1826.7,1826.6,1.09465]
[1746259340123,10.92470577,1826.7,1826.6,1.09465]
[1746259340830,10.92470577,1826.7,1826.6,2.68835]
[1746259341229,7.20670577,1826.7,1826.6,2.68835]
[1746259342131,10.92470577,1826.7,1826.6,2.68835]
[1746259343732,7.27011,1826.7,1826.6,2.68835]
[1746259344432,7.27011,1826.7,1826.6,1.5937]
[1746259347343,7.55845865,1826.7,1826.6,1.5937]
[1746259347534,7.55845867,1826.7,1826.6,1.5937]
[1746259347734,7.55846405,1826.7,1826.6,1.5937]
[1746259347935,7.55846333,1826.7,1826.6,1.5937]
[1746259348239,7.55846248,1826.7,1826.6,1.5937]
[1746259348536,1.09465,1826.6,1826.5,0.8662]
[1746259348730,2.79515,1826.6,1826.5,1.96091]
[1746259350442,1.09471,1826.5,1826.4,6.20953]
[1746259350941,1.94151,1826.5,1826.4,6.20953]
[1746259351133,1.94151,1826.5,1826.4,5.1148]
[1746259351540,2.77781,1826.5,1826.4,5.1148]
[1746259352342,1.09477,1826.4,1826.3,7.30870578]
[1746259352642,2.70867,1826.4,1826.3,10.74770578]
[1746259352838,2.70867,1826.4,1826.3,13.22510578]
[1746259353342,2.70867,1826.4,1826.3,14.31993578]
[1746259356544,2.70867,1826.4,1826.3,7.30870578]
[1746259357146,6.42667,1826.4,1826.3,7.30870578]
[1746259358648,1.09483,1826.3,1826.2,6.00259]
[1746259358843,3.54363,1826.3,1826.2,6.00259]
[1746259359038,3.54363,1826.3,1826.2,4.9077]
[1746259361243,2.73263,1826.3,1826.2,4.9077]
[1746259363157,1.09483,1826.3,1826.2,4.9077]
[1746259364756,1.09489,1826.2,1826.1,41.6312]
[1746259364956,1.96689,1826.2,1826.1,40.8]
[1746259365357,1.96689,1826.2,1826.1,41.89495]
[1746259365553,1.96689,1826.2,1826.1,43.63865]
[1746259365753,1.09489,1826.2,1826.1,43.63865]
[1746259370556,1.7475,1826.3,1826.1,42.5437]
[1746259370757,1.09489,1826.2,1826.1,41.89492]
[1746259376953,1.09489,1826.2,1826.1,1.09492]
[1746259379466,1.09495,1826.1,1826.0,40.8]
[1746259379668,1.09494,1826.2,1826.1,1.09494]
[1746259381966,1.09495,1826.1,1826.0,45.33496]
[1746259382469,1.09493,1826.2,1826.1,1.09492]
[1746259383870,1.09495,1826.1,1826.0,44.24]
[1746259384169,2.74645,1826.1,1826.0,45.33501]
[1746259384572,1.09495,1826.1,1826.0,45.33501]
[1746259384867,1.09495,1826.1,1826.0,46.18381]
[1746259385058,1.09495,1826.1,1826.0,47.81961]
[1746259386466,1.09495,1826.1,1826.0,46.7246]
[1746259387869,1.09495,1826.1,1826.0,47.81961]
[1746259388870,2.82885,1826.1,1826.0,47.81961]
[1746259389571,2.82885,1826.1,1826.0,46.7246]
[1746259390270,1.09507,1825.9,1825.8,0.8177]
[1746259390471,1.09513,1825.8,1825.7,4.2772]
[1746259390669,1.09513,1825.8,1825.7,5.9198]
[1746259392572,1.09513,1825.8,1825.7,7.01499]
[1746259392772,0.8499,1826.0,1825.7,5.9198]
[1746259392973,1.09509,1825.9,1825.8,2.4268]
[1746259395168,1.09509,1825.9,1825.8,3.52193]
[1746259398482,1.09509,1825.9,1825.8,2.4268]
[1746259398779,2.75419,1825.9,1825.8,1.6256]
[1746259401078,1.09513,1825.8,1825.7,5.37234]
[1746259401278,3.65923,1825.8,1825.7,3.44]
[1746259405286,7.37723,1825.8,1825.7,3.44]
[1746259405486,4.81313,1825.8,1825.7,5.8202]
[1746259405875,5.65973,1825.8,1825.7,5.8202]
[1746259406080,7.37883,1825.8,1825.7,6.91539]
[1746259406475,7.37883,1825.8,1825.7,6.12219]
[1746259407086,7.37883,1825.8,1825.7,5.027]
[1746259407489,7.37883,1825.8,1825.7,3.44]
[1746259408092,7.37883,1825.8,1825.7,5.1405]
[1746259409095,7.37883,1825.8,1825.7,3.44]
[1746259409580,7.37883,1825.8,1825.7,4.53519]
[1746259409785,7.37883,1825.8,1825.7,3.44]
[1746259410378,7.37883,1825.8,1825.7,4.53519]
[1746259410583,7.37883,1825.8,1825.7,3.44]
[1746259410791,7.37883,1825.8,1825.7,4.53519]
[1746259411378,6.2837,1825.8,1825.6,1.7005]
[1746259411591,2.69279,1825.7,1825.6,2.79572]
[1746259412291,2.69279,1825.7,1825.6,1.7005]
[1746259412491,1.09525,1825.6,1825.5,5.11687]
[1746259412789,3.49615,1825.6,1825.5,5.11687]
[1746259412987,3.49615,1825.6,1825.5,3.2078]
[1746259413381,3.49615,1825.6,1825.4,6.16872]
[1746259413583,1.6476,1825.5,1825.4,6.16872]
[1746259417594,2.74291,1825.5,1825.4,6.16872]
[1746259418489,2.74291,1825.5,1825.4,4.53637]
[1746259420301,6.46091,1825.5,1825.4,4.53637]
[1746259421097,5.3656,1825.5,1825.2,10.51650578]
[1746259421302,5.3656,1825.5,1825.3,1.09541]
[1746259421303,3.55929,1825.4,1825.3,1.09541]
[1746259422195,7.27729,1825.4,1825.3,1.09541]
[1746259423496,7.27729,1825.4,1825.3,2.69851]
[1746259426105,6.1819,1825.4,1825.3,2.69851]
[1746259426301,3.718,1825.4,1825.3,2.69851]
[1746259426908,4.81337,1825.4,1825.3,2.69851]
[1746259427297,1.09537,1825.4,1825.3,2.69851]
[1746259428504,3.53825,1825.5,1825.4,1.09537]
[1746259428700,3.53825,1825.5,1825.4,2.69837]
[1746259429204,3.53825,1825.5,1825.4,1.603]
[1746259429403,3.53825,1825.5,1825.4,2.69837]
[1746259430408,3.53825,1825.5,1825.4,1.603]
[1746259432103,3.53825,1825.5,1825.4,2.69837]
[1746259433405,3.53825,1825.5,1825.4,1.603]
[1746259433908,3.53825,1825.5,1825.4,2.69837]
[1746259434106,3.53825,1825.5,1825.4,1.603]
[1746259435609,3.82620174,1825.5,1825.4,1.603]
[1746259435797,3.53825,1825.5,1825.4,1.603]
[1746259436002,3.82620016,1825.5,1825.4,1.603]
[1746259436208,3.82619799,1825.5,1825.4,1.603]
[1746259436408,3.53825,1825.5,1825.4,1.603]
[1746259436708,3.82624866,1825.5,1825.4,1.603]
[1746259436908,3.82624868,1825.5,1825.4,1.603]
[1746259437109,3.82624866,1825.5,1825.4,1.603]
[1746259437310,3.53825,1825.5,1825.4,2.69837]
[1746259437502,3.53825,1825.5,1825.4,4.35877]
[1746259438202,3.82624959,1825.5,1825.4,4.35877]
[1746259438399,3.53825,1825.5,1825.4,4.35877]
[1746259438603,3.82624913,1825.5,1825.4,4.35877]
[1746259438803,3.53825,1825.5,1825.4,3.2634]
[1746259439005,3.82624947,1825.5,1825.4,3.2634]
[1746259439210,3.53825,1825.5,1825.4,3.2634]
[1746259439608,3.82624949,1825.5,1825.4,3.2634]
[1746259439806,3.8263413,1825.5,1825.4,3.2634]
[1746259440007,3.8263411,1825.5,1825.4,3.2634]
[1746259440312,3.53825,1825.5,1825.4,4.35877]
[1746259440516,3.82633174,1825.5,1825.4,4.35877]
[1746259441211,2.73097401,1825.5,1825.4,4.35877]
[1746259441515,2.4429,1825.5,1825.4,4.35877]
[1746259441709,3.82628385,1825.5,1825.4,4.35877]
[1746259441910,3.53821,1825.5,1825.4,4.35877]
[1746259442312,3.82628656,1825.5,1825.4,3.2634]
[1746259442708,2.73110591,1825.5,1825.4,4.35877]
[1746259442905,2.73112848,1825.5,1825.4,4.35877]
[1746259443210,3.82643486,1825.5,1825.4,4.35877]
[1746259443405,3.82643476,1825.5,1825.4,4.35877]
[1746259443610,3.82643807,1825.5,1825.4,4.35877]
[1746259443815,3.82643801,1825.5,1825.4,4.35877]
[1746259444016,1.09537,1825.4,1825.3,1.0954]
[1746259444321,2.72657,1825.4,1825.3,1.0954]
[1746259445208,1.09543,1825.3,1825.2,45.36965]
[1746259445414,2.72662,1825.4,1825.3,1.09543]
[1746259446520,1.09543,1825.3,1825.2,3.4742]
[1746259446714,1.09543,1825.3,1825.2,4.56969]
[1746259446912,1.94323,1825.3,1825.2,3.4742]
[1746259447113,5.66123,1825.3,1825.2,3.4742]
[1746259447514,5.66123,1825.3,1825.2,4.56969]
[1746259447719,4.5658,1825.3,1825.2,4.56969]
[1746259448217,5.66123,1825.3,1825.2,4.56969]
[1746259449005,5.66123,1825.3,1825.2,3.69849]
[1746259449617,5.66123,1825.3,1825.2,4.50229]
[1746259450819,4.5658,1825.3,1825.2,4.50229]
[1746259452222,0.8478,1825.3,1825.2,4.50229]
[1746259452614,1.94323,1825.3,1825.2,4.50229]
[1746259452816,3.62783,1825.3,1825.2,4.50229]
[1746259453310,2.5324,1825.3,1825.2,4.50229]
[1746259454124,6.2504,1825.3,1825.2,4.50229]
[1746259455724,7.34583,1825.3,1825.2,4.50229]
[1746259460628,6.2504,1825.3,1825.2,4.50229]
[1746259462829,7.34583,1825.3,1825.2,4.50229]
[1746259465330,1.51549558,1825.3,1825.2,12.71009]
[1746259466232,3.65459577,1825.4,1825.3,1.09543]
[1746259466430,3.65459577,1825.4,1825.3,2.75753]
[1746259467233,3.65459577,1825.4,1825.3,6.47553]
[1746259469134,1.6481,1825.7,1825.6,1.09525]
[1746259469327,2.74331,1825.7,1825.6,1.09525]
[1746259469528,3.55701,1825.7,1825.6,1.09525]
[1746259470128,7.27501,1825.7,1825.6,1.09525]
[1746259472442,6.97963791,1825.7,1825.6,1.09525]
[1746259473243,5.88442791,1825.7,1825.5,5.9858]
[1746259473442,4.5317,1825.7,1825.5,3.442]
[1746259473645,1.09525,1825.6,1825.5,3.442]
[1746259474141,4.81325,1825.6,1825.5,3.442]
[1746259474839,3.718,1825.6,1825.3,10.51650578]
[1746259475142,1.95436,1825.5,1825.4,1.09537]
[1746259475841,3.70826,1825.5,1825.4,1.09537]
[1746259476244,7.42626,1825.5,1825.4,1.09537]
[1746259484743,6.3309,1825.5,1825.2,6.6668]
[1746259484947,1.09543,1825.3,1825.2,7.76228]
[1746259485147,1.09543,1825.3,1825.2,9.51428]
[1746259485339,2.83973,1825.3,1825.2,9.51428]
[1746259485540,2.83973,1825.3,1825.2,6.30648]
[1746259486148,6.55773,1825.3,1825.2,6.30648]
[1746259494552,6.55773,1825.3,1825.2,2.84748]
[1746259495151,6.55773,1825.3,1825.2,1.752]
[1746259495649,6.55773,1825.3,1825.2,2.84749]
[1746259497256,6.55773,1825.3,1825.2,1.752]
[1746259498860,6.55773,1825.3,1825.2,2.84749]
[1746259499251,6.55773,1825.3,1825.2,1.752]
[1746259499444,1.09555,1825.1,1825.0,40.8]
[1746259499651,1.09555,1825.1,1825.0,1.7278]
[1746259499956,1.09555,1825.1,1825.0,0.8528]
[1746259500147,1.09555,1825.1,1825.0,1.94841]
[1746259500955,1.09555,1825.1,1825.0,3.64451]
[1746259501151,4.81355,1825.1,1825.0,3.64451]
[1746259502158,1.09555,1825.1,1825.0,3.64451]
[1746259505253,4.81355,1825.1,1825.0,3.64451]
[1746259505951,3.718,1825.1,1825.0,3.64451]
[1746259506257,1.0955,1825.2,1825.1,1.09555]
[1746259506450,1.0955,1825.2,1825.1,1.92785]
[1746259507160,4.8135,1825.2,1825.1,1.92785]
[1746259508660,4.8135,1825.2,1825.1,5.37885]
[1746259510263,4.8135,1825.2,1825.1,1.09555]
[1746259510463,4.8135,1825.2,1825.1,4.54655]
[1746259511864,3.718,1825.2,1825.1,4.54655]
[1746259512064,3.718,1825.2,1825.1,5.38795]
[1746259512365,4.81349,1825.2,1825.1,5.38795]
[1746259513566,3.718,1825.2,1825.1,5.38795]
[1746259514465,3.718,1825.2,1825.1,8.59575]
[1746259515267,3.718,1825.2,1825.1,5.38795]
[1746259515465,4.81349,1825.2,1825.1,5.38795]
[1746259516266,3.718,1825.2,1825.1,5.38795]
[1746259521171,4.81349,1825.2,1825.1,5.38795]
[1746259523768,3.718,1825.2,1825.1,5.38795]
[1746259524874,4.81349,1825.2,1825.1,5.38795]
[1746259525071,4.81349,1825.2,1825.1,7.06445]
[1746259526875,3.718,1825.2,1825.1,7.06445]
[1746259528871,3.718,1825.2,1825.1,3.61345]
[1746259536182,3.718,1825.2,1825.1,7.05845]
[1746259538192,4.81349,1825.2,1825.1,7.05845]
[1746259538380,6.44709,1825.2,1825.1,7.05845]
[1746259538581,5.3516,1825.2,1825.1,7.05845]
[1746259540489,5.3516,1825.2,1825.1,6.21705]
[1746259540787,7.29679,1825.2,1825.1,4.54055]
[1746259542489,5.3516,1825.2,1825.1,4.54055]
[1746259542987,6.44709,1825.2,1825.1,4.54055]
[1746259547490,6.44709,1825.2,1825.1,6.13275]
[1746259548499,5.3516,1825.2,1825.1,6.13275]
[1746259550400,3.718,1825.2,1825.1,6.13275]
[1746259550593,3.718,1825.2,1825.1,6.97255]
[1746259550994,4.81349,1825.2,1825.1,6.97255]
[1746259551299,3.718,1825.2,1825.1,6.97255]
[1746259552202,4.81349,1825.2,1825.1,6.13275]
[1746259552404,6.50399,1825.2,1825.1,6.13275]
[1746259556302,5.4085,1825.2,1825.1,6.13275]
[1746259560506,3.718,1825.2,1825.1,6.13275]
[1746259561208,1.94275,1825.3,1825.2,1.09549]
[1746259561404,3.63615,1825.3,1825.2,2.84369]
[1746259562710,3.92477268,1825.3,1825.2,2.84369]
[1746259562903,3.63615,1825.3,1825.2,2.84369]
[1746259563105,3.63615,1825.3,1825.2,1.09549]
[1746259563311,7.64277311,1825.3,1825.2,1.09549]
[1746259563609,7.35415,1825.3,1825.2,1.09549]
[1746259563809,7.64277555,1825.3,1825.2,1.09549]
[1746259564013,7.64277538,1825.3,1825.2,1.09549]
[1746259564205,7.64277599,1825.3,1825.2,1.09549]
[1746259564413,7.64277481,1825.3,1825.2,1.09549]
[1746259564608,7.64277403,1825.3,1825.2,1.09549]
[1746259564909,4.81345,1825.3,1825.2,1.09549]
[1746259565106,4.81345,1825.3,1825.2,2.69739]
[1746259565313,4.81345,1825.3,1825.2,3.52389]
[1746259566214,1.09545,1825.3,1825.2,3.52389]
[1746259567213,4.81345,1825.3,1825.2,3.52389]
[1746259567606,6.55455,1825.3,1825.2,3.52389]
[1746259569312,1.09549,1825.2,1825.1,11.84920578]
[1746259569514,2.4383,1825.2,1825.1,11.84920578]
[1746259569718,2.4383,1825.2,1825.1,13.46570578]
[1746259570216,6.1563,1825.2,1825.1,13.46570578]
[1746259570518,6.1563,1825.2,1825.1,14.29860578]
[1746259571816,6.1563,1825.2,1825.1,6.9899]
[1746259574623,4.5299,1825.2,1825.1,6.9899]
[1746259575312,3.718,1825.2,1825.1,6.9899]
[1746259576420,5.3993,1825.2,1825.1,6.9899]
[1746259576623,3.718,1825.2,1825.1,6.9899]
[1746259580623,5.4399,1825.2,1825.1,6.9899]